[Event "II Open Internacional Ateneo Marítimo (60 Aniversario)"]
[Site "C/La reina 68 (Valencia), Spain"]
[Date "2018.09.15"]
[Round "1.7"]
[White "Valmana Canto, Jaime"]
[Black "Martinez Vestergaard, Kristian"]
[Result "1-0"]
[TimeControl "7m+3s por jugada"]
[WhiteFideId "2268990"]
[BlackFideId "32096267"]
[WhiteElo "2340"]
[BlackElo "1860"]

1. e4 {[%clk 00:07:04]} {[%emt 00:01:19]} c5 {[%clk 00:07:05]} 2. Nf3 {[%clk
00:07:04]} d6 {[%clk 00:07:07]} 3. d4 {[%clk 00:07:04]} cxd4 {[%clk 00:07:09]}
4. Nxd4 {[%clk 00:07:05]} Nf6 {[%clk 00:07:11]} 5. Nc3 {[%clk 00:07:07]} a6
{[%clk 00:07:13]} 6. Be3 {[%clk 00:07:07]} Ng4 {[%clk 00:06:44]} 7. Bc1 {[%clk
00:07:07]} Nf6 {[%clk 00:06:34]} 8. g3 {[%clk 00:07:07]} Nbd7 {[%clk 00:05:50]}
{[%emt 00:00:43]} 9. Bg2 {[%clk 00:07:04]} {[%emt 00:00:06]} e5 {[%clk
00:05:51]} {[%emt 00:00:04]} 10. Nf5 {[%clk 00:07:03]} Qc7 {[%clk 00:05:24]}
{[%emt 00:00:40]} 11. O-O {[%clk 00:06:53]} {[%emt 00:00:15]} g6 {[%clk
00:04:59]} {[%emt 00:00:13]} 12. Ne3 {[%clk 00:06:51]} {[%emt 00:00:47]} Nb6
{[%clk 00:04:02]} {[%emt 00:00:27]} 13. a4 {[%clk 00:06:49]} Be6 {[%clk
00:03:53]} {[%emt 00:00:21]} 14. a5 {[%clk 00:06:46]} Nbd7 {[%clk 00:03:33]}
{[%emt 00:00:20]} 15. Ncd5 {[%clk 00:06:10]} {[%emt 00:00:36]} Bxd5 {[%clk
00:03:35]} {[%emt 00:00:10]} 16. Nxd5 {[%clk 00:06:10]} Nxd5 {[%clk 00:03:36]}
{[%emt 00:00:04]} 17. Qxd5 {[%clk 00:06:10]} Nf6 {[%clk 00:03:27]} {[%emt
00:00:08]} 18. Qd3 {[%clk 00:06:10]} {[%emt 00:00:03]} Be7 {[%clk 00:03:22]}
{[%emt 00:00:11]} 19. Be3 {[%clk 00:05:33]} {[%emt 00:00:34]} Rc8 {[%clk
00:03:20]} {[%emt 00:00:18]} 20. Rfd1 {[%clk 00:04:36]} {[%emt 00:00:52]} O-O
{[%clk 00:03:07]} {[%emt 00:00:15]} 21. Bh3 {[%clk 00:04:35]} {[%emt 00:00:07]}
Rcd8 {[%clk 00:03:01]} {[%emt 00:00:10]} 22. Bb6 {[%clk 00:04:35]} {[%emt
00:00:03]} Qc6 {[%clk 00:02:51]} {[%emt 00:00:29]} 23. Bxd8 {[%clk 00:04:32]}
Rxd8 {[%clk 00:02:53]} 24. Bg2 {[%clk 00:04:30]} Kg7 {[%clk 00:01:55]} {[%emt
00:01:04]} 25. c4 {[%clk 00:04:22]} Qc5 {[%clk 00:01:56]} {[%emt 00:00:07]} 26.
h3 {[%clk 00:04:12]} {[%emt 00:00:10]} h5 {[%clk 00:01:35]} {[%emt 00:00:32]}
27. h4 {[%clk 00:03:22]} {[%emt 00:00:38]} Ng4 {[%clk 00:01:27]} {[%emt
00:00:12]} 28. Rd2 {[%clk 00:03:13]} {[%emt 00:00:19]} Rc8 {[%clk 00:01:26]}
{[%emt 00:00:04]} 29. b3 {[%clk 00:02:50]} {[%emt 00:00:35]} g5 {[%clk
00:01:02]} {[%emt 00:00:12]} 30. Bh3 {[%clk 00:02:35]} {[%emt 00:00:50]} gxh4
{[%clk 00:00:51]} 31. Bxg4 {[%clk 00:02:37]} {[%emt 00:00:08]} hxg4 {[%clk
00:00:51]} 32. Qe2 {[%clk 00:02:20]} Rg8 {[%clk 00:00:41]} {[%emt 00:00:09]} 33.
Rd5 {[%clk 00:02:04]} {[%emt 00:00:42]} Qc7 {[%clk 00:00:36]} 34. c5 {[%clk
00:01:36]} {[%emt 00:00:23]} Kf8 {[%clk 00:00:20]} {[%emt 00:00:27]} 35. cxd6
{[%clk 00:01:30]} Bxd6 {[%clk 00:00:22]} 36. Rad1 {[%clk 00:01:32]} Rg6 {[%clk
00:00:24]} 37. Qc4 {[%clk 00:01:24]} {[%emt 00:00:15]} Qe7 {[%clk 00:00:22]} 38.
Qd3 {[%clk 00:01:07]} {[%emt 00:00:42]} Bc5 {[%clk 00:00:12]} {[%emt 00:00:03]}
39. Kg2 {[%clk 00:00:41]} {[%emt 00:00:34]} Bd4 {[%clk 00:00:09]} 40. Rxd4
{[%clk 00:00:37]} exd4 {[%clk 00:00:11]} 41. Qxd4 {[%clk 00:00:38]} h3+ {[%clk
00:00:13]} 42. Kg1 {[%clk 00:00:35]} {[%emt 00:00:18]} Qe6 {[%clk 00:00:13]} 43.
Qh8+ {[%clk 00:00:33]} Ke7 {[%clk 00:00:13]} 44. Qd8# {[%emt 00:00:09]} 1-0

[Event "II Open Internacional Ateneo Marítimo (60 Aniversario)"]
[Site "C/La reina 68 (Valencia), Spain"]
[Date "2018.09.15"]
[Round "2.1"]
[White "Garcia Trobat, Francisco"]
[Black "Plaskett, H James"]
[Result "0-1"]
[TimeControl "7m+3s por jugada"]
[WhiteFideId "2200678"]
[BlackFideId "400238"]
[WhiteElo "2231"]
[BlackElo "2450"]

1. e4 {[%clk 00:07:03]} {[%emt 00:05:52]} d6 {[%clk 00:07:03]} {[%emt
00:00:32]} 2. d4 {[%clk 00:07:03]} {[%emt 00:00:04]} g6 {[%clk 00:07:03]} 3.
Nc3 {[%clk 00:07:03]} Bg7 {[%clk 00:07:03]} 4. Be3 {[%clk 00:07:02]} {[%emt
00:00:26]} c6 {[%clk 00:07:05]} {[%emt 00:00:15]} 5. Qd2 {[%clk 00:06:52]} Nd7
{[%clk 00:07:07]} 6. O-O-O {[%clk 00:06:43]} {[%emt 00:00:13]} b5 {[%clk
00:07:10]} 7. Nf3 {[%clk 00:06:11]} {[%emt 00:00:32]} Qa5 {[%clk 00:07:07]}
{[%emt 00:00:15]} 8. Kb1 {[%clk 00:06:07]} {[%emt 00:00:04]} Rb8 {[%clk
00:07:00]} {[%emt 00:00:07]} 9. e5 {[%clk 00:05:24]} {[%emt 00:00:44]} b4
{[%clk 00:03:13]} {[%emt 00:03:49]} 10. Ne4 {[%clk 00:05:06]} {[%emt 00:00:21]}
Nb6 {[%clk 00:03:05]} {[%emt 00:00:17]} 11. exd6 {[%clk 00:04:39]} {[%emt
00:00:25]} Be6 {[%clk 00:02:58]} {[%emt 00:00:08]} 12. b3 {[%clk 00:03:13]}
{[%emt 00:01:30]} Nd5 {[%clk 00:02:51]} {[%emt 00:00:41]} 13. dxe7 {[%clk
00:02:08]} {[%emt 00:00:39]} Nc3+ {[%clk 00:01:38]} {[%emt 00:01:49]} 14. Nxc3
{[%clk 00:02:09]} bxc3 {[%clk 00:01:40]} 15. Qd3 {[%clk 00:02:00]} Nxe7 {[%clk
00:01:38]} 16. Ng5 {[%clk 00:01:52]} Bd5 {[%clk 00:01:10]} {[%emt 00:00:25]} 17.
Qa6 {[%clk 00:01:45]} {[%emt 00:00:20]} Qc7 {[%clk 00:01:08]} {[%emt 00:00:13]}
18. Bc4 {[%clk 00:01:42]} Rb6 {[%clk 00:00:53]} {[%emt 00:00:12]} 19. Qa4
{[%clk 00:01:35]} {[%emt 00:00:06]} O-O {[%clk 00:00:54]} {[%emt 00:00:14]} 20.
Bxd5 {[%clk 00:01:27]} {[%emt 00:00:04]} Nxd5 {[%clk 00:00:54]} 21. Ne4 {[%clk
00:01:27]} {[%emt 00:00:04]} Qe7 {[%clk 00:00:41]} {[%emt 00:00:11]} 22. Nc5
{[%clk 00:01:17]} {[%emt 00:00:19]} Rfb8 {[%clk 00:00:42]} 23. Bc1 {[%clk
00:01:14]} {[%emt 00:00:05]} Rb4 {[%clk 00:00:37]} {[%emt 00:00:08]} 24. Qxc6
{[%clk 00:01:08]} {[%emt 00:00:09]} Rxd4 {[%clk 00:00:28]} {[%emt 00:00:09]} 25.
Rxd4 {[%clk 00:00:51]} {[%emt 00:00:32]} Bxd4 {[%clk 00:00:31]} 26. Qxd5 {[%clk
00:00:47]} Bxc5 {[%clk 00:00:33]} 27. Qc4 {[%clk 00:00:35]} {[%emt 00:00:12]}
Bxf2 {[%clk 00:00:21]} {[%emt 00:00:26]} 28. Qxc3 {[%clk 00:00:32]} Rd8 {[%clk
00:00:24]} 29. h4 {[%clk 00:00:15]} {[%emt 00:00:19]} h5 {[%clk 00:00:17]}
{[%emt 00:00:06]} 30. Bb2 {[%clk 00:00:14]} {[%emt 00:00:11]} Bd4 {[%clk
00:00:18]} {[%emt 00:00:07]} 31. Qe1 {[%clk 00:00:14]} Qc7 {[%clk 00:00:13]} 32.
Bxd4 {[%clk 00:00:13]} {[%emt 00:00:04]} Rxd4 {[%clk 00:00:16]} 33. Qe8+ {[%clk
00:00:15]} {[%emt 00:00:11]} Kg7 {[%clk 00:00:19]} 34. Re1 {[%clk 00:00:17]}
Rxh4 {[%clk 00:00:20]} 35. Re7 {[%clk 00:00:15]} Rh1+ {[%emt 00:00:06]} 36. Kb2
Qf4 {[%clk 00:00:21]} 37. Ka3 {[%clk 00:00:15]} {[%emt 00:00:24]} Rh2 {[%clk
00:00:18]} 38. Qc6 {[%clk 00:00:15]} h4 {[%clk 00:00:17]} 39. Qc3+ {[%clk
00:00:15]} Qf6 {[%clk 00:00:17]} 40. Qxf6+ {[%clk 00:00:14]} {[%emt 00:00:04]}
Kxf6 {[%clk 00:00:19]} {[%emt 00:00:13]} 41. Rxa7 Rxg2 42. c4 h3 {[%clk
00:00:21]} {[%emt 00:00:08]} 43. Ra8 {[%clk 00:00:21]} Kg7 {[%clk 00:00:23]}
0-1

[Event "II Open Internacional Ateneo Marítimo (60 Aniversario)"]
[Site "C/La reina 68 (Valencia), Spain"]
[Date "2018.09.15"]
[Round "2.2"]
[White "Cruz Lledo, Pablo"]
[Black "Galvan, Jesus"]
[Result "1-0"]
[TimeControl "7m+3s por jugada"]
[WhiteFideId "2297361"]
[BlackFideId "3800458"]
[WhiteElo "2436"]
[BlackElo "2185"]

1. d4 {[%clk 00:07:02]} {[%emt 00:00:29]} d6 {[%clk 00:07:05]} 2. Nf3 {[%clk
00:07:02]} Bg4 {[%clk 00:07:04]} {[%emt 00:00:10]} 3. e3 {[%clk 00:07:03]} Nd7
{[%clk 00:07:04]} 4. h3 {[%clk 00:07:05]} Bh5 {[%clk 00:07:06]} 5. Be2 {[%clk
00:07:07]} e5 {[%clk 00:07:07]} 6. c4 {[%clk 00:07:06]} c6 {[%clk 00:07:09]}
{[%emt 00:00:03]} 7. Nc3 {[%clk 00:07:08]} Ngf6 {[%clk 00:07:11]} 8. O-O {[%clk
00:07:03]} Be7 {[%clk 00:07:12]} {[%emt 00:00:04]} 9. Nd2 {[%clk 00:06:56]}
{[%emt 00:00:05]} Bxe2 {[%clk 00:06:34]} {[%emt 00:00:40]} 10. Qxe2 {[%clk
00:06:57]} {[%emt 00:00:36]} O-O {[%clk 00:06:36]} 11. b3 {[%clk 00:06:56]} Re8
{[%clk 00:06:31]} {[%emt 00:00:09]} 12. dxe5 {[%clk 00:06:49]} dxe5 {[%clk
00:06:33]} 13. Bb2 {[%clk 00:06:44]} a5 {[%clk 00:06:27]} 14. Rad1 {[%clk
00:06:45]} {[%emt 00:00:09]} Qc7 {[%clk 00:06:29]} 15. Nde4 {[%clk 00:06:25]}
{[%emt 00:00:15]} Nxe4 {[%clk 00:05:47]} {[%emt 00:00:44]} 16. Nxe4 {[%clk
00:06:26]} {[%emt 00:00:14]} Nc5 {[%clk 00:05:49]} 17. Ng3 {[%clk 00:06:12]}
{[%emt 00:00:10]} a4 {[%clk 00:05:41]} {[%emt 00:00:18]} 18. b4 {[%emt
00:00:11]} a3 19. Bc3 {[%clk 00:06:04]} Na4 {[%clk 00:05:26]} {[%emt 00:00:13]}
20. Qc2 {[%clk 00:06:05]} {[%emt 00:00:40]} Nxc3 {[%clk 00:02:26]} {[%emt
00:02:25]} 21. Qxc3 {[%clk 00:06:06]} {[%emt 00:00:32]} Bf8 {[%clk 00:02:24]}
22. Rd2 {[%clk 00:05:38]} {[%emt 00:00:05]} Red8 {[%clk 00:01:59]} {[%emt
00:00:28]} 23. Rfd1 {[%clk 00:05:37]} {[%emt 00:00:11]} Rxd2 {[%clk 00:01:17]}
{[%emt 00:00:41]} 24. Rxd2 {[%clk 00:05:19]} {[%emt 00:00:20]} Rd8 {[%clk
00:01:09]} {[%emt 00:00:18]} 25. Rxd8 {[%clk 00:05:06]} {[%emt 00:00:18]} Qxd8
{[%clk 00:01:11]} {[%emt 00:00:11]} 26. c5 {[%clk 00:05:07]} Qd1+ {[%clk
00:00:31]} {[%emt 00:00:31]} 27. Kh2 {[%clk 00:05:09]} Qd5 {[%clk 00:00:29]}
{[%emt 00:00:04]} 28. Qxa3 {[%clk 00:05:09]} {[%emt 00:00:07]} g6 {[%clk
00:00:31]} 29. Qb3 {[%clk 00:04:31]} {[%emt 00:00:47]} Qd2 {[%clk 00:00:22]}
{[%emt 00:00:11]} 30. Ne4 {[%clk 00:04:29]} Qe2 {[%clk 00:00:19]} {[%emt
00:00:04]} 31. Kg3 {[%clk 00:04:05]} {[%emt 00:00:26]} h5 {[%clk 00:00:15]}
{[%emt 00:00:22]} 32. f3 {[%clk 00:03:28]} {[%emt 00:00:26]} Qe1+ {[%clk
00:00:10]} {[%emt 00:00:10]} 33. Kh2 {[%clk 00:03:26]} {[%emt 00:00:05]} h4
{[%clk 00:00:12]} 34. Qc3 {[%clk 00:02:59]} {[%emt 00:00:23]} Qb1 {[%clk
00:00:06]} {[%emt 00:00:21]} 35. Qxe5 {[%clk 00:02:53]} {[%emt 00:00:12]} Bg7
{[%clk 00:00:06]} 36. Qb8+ {[%emt 00:00:08]} Kh7 37. Ng5+ {[%clk 00:02:35]}
{[%emt 00:00:37]} Kh6 {[%clk 00:00:10]} 38. Nxf7+ {[%clk 00:02:36]} Kh5 {[%clk
00:00:11]} 39. Qf4 {[%clk 00:02:30]} g5 {[%clk 00:00:05]} 40. Qxg5# {[%clk
00:02:27]} {[%emt 00:00:06]} 1-0

[Event "II Open Internacional Ateneo Marítimo (60 Aniversario)"]
[Site "C/La reina 68 (Valencia), Spain"]
[Date "2018.09.15"]
[Round "2.3"]
[White "Nicolas Zapata, Javier"]
[Black "Campos Gambuti, Luis Maria"]
[Result "0-1"]
[TimeControl "7m+3s por jugada"]
[WhiteFideId "22247289"]
[BlackFideId "2226979"]
[WhiteElo "2181"]
[BlackElo "2382"]

1. e4 {[%clk 00:07:01]} {[%emt 00:00:05]} Nf6 {[%clk 00:07:05]} 2. e5 {[%clk
00:07:00]} {[%emt 00:00:10]} Nd5 {[%clk 00:07:07]} 3. c4 {[%clk 00:07:01]}
{[%emt 00:00:04]} Nb6 {[%clk 00:07:09]} 4. c5 {[%clk 00:07:03]} Nd5 {[%clk
00:07:10]} 5. Nc3 {[%clk 00:07:04]} c6 {[%clk 00:07:03]} {[%emt 00:00:11]} 6.
Nxd5 {[%clk 00:07:03]} {[%emt 00:00:06]} cxd5 {[%clk 00:07:05]} 7. d4 {[%clk
00:07:03]} {[%emt 00:00:04]} b6 {[%clk 00:06:37]} {[%emt 00:00:31]} 8. cxb6
{[%clk 00:06:58]} {[%emt 00:00:05]} Qxb6 {[%clk 00:06:39]} {[%emt 00:00:13]} 9.
Nf3 {[%clk 00:06:52]} d6 {[%clk 00:06:34]} {[%emt 00:00:11]} 10. Bd3 {[%clk
00:06:39]} {[%emt 00:00:15]} Bg4 {[%clk 00:06:20]} {[%emt 00:00:12]} 11. h3
{[%clk 00:05:45]} {[%emt 00:01:01]} Bxf3 {[%clk 00:06:06]} {[%emt 00:00:13]} 12.
Qxf3 {[%clk 00:05:47]} e6 {[%clk 00:06:07]} {[%emt 00:00:06]} 13. O-O {[%clk
00:05:27]} {[%emt 00:00:21]} Nc6 {[%clk 00:05:46]} {[%emt 00:00:23]} 14. Be3
{[%clk 00:04:47]} {[%emt 00:00:44]} dxe5 {[%clk 00:05:22]} {[%emt 00:00:27]} 15.
dxe5 {[%clk 00:04:47]} {[%emt 00:00:05]} Bc5 {[%clk 00:05:24]} 16. Bxc5 {[%clk
00:04:43]} {[%emt 00:00:05]} Qxc5 {[%clk 00:05:26]} 17. Rac1 {[%clk 00:03:50]}
{[%emt 00:00:57]} Qb6 {[%clk 00:05:27]} {[%emt 00:00:06]} 18. Qh5 {[%clk
00:03:51]} h6 {[%clk 00:05:04]} {[%emt 00:00:24]} 19. Rc3 {[%clk 00:02:36]}
{[%emt 00:01:18]} O-O {[%clk 00:05:01]} {[%emt 00:00:06]} 20. Bb1 {[%clk
00:02:24]} {[%emt 00:00:27]} Rfc8 {[%clk 00:04:16]} {[%emt 00:00:45]} 21. Rg3
{[%clk 00:02:09]} {[%emt 00:00:14]} Qd4 {[%clk 00:04:12]} {[%emt 00:00:13]} 22.
Qxh6 {[%clk 00:01:42]} {[%emt 00:00:25]} Qxe5 {[%clk 00:04:13]} 23. Qh7+ {[%clk
00:00:59]} {[%emt 00:00:48]} Kf8 {[%clk 00:04:16]} 24. Qh8+ {[%clk 00:00:48]}
{[%emt 00:00:13]} Ke7 {[%clk 00:04:18]} 25. Qxg7 {[%clk 00:00:46]} {[%emt
00:00:05]} Qxg7 {[%clk 00:04:18]} {[%emt 00:00:09]} 26. Rxg7 {[%clk 00:00:48]}
Rab8 {[%clk 00:04:20]} 27. b3 {[%clk 00:00:46]} Nd4 {[%clk 00:04:22]} 28. h4
{[%clk 00:00:38]} {[%emt 00:00:11]} Rb4 {[%clk 00:03:54]} {[%emt 00:00:35]} 29.
g3 {[%clk 00:00:36]} {[%emt 00:00:04]} Kf6 {[%clk 00:03:55]} 30. Rh7 {[%clk
00:00:31]} {[%emt 00:00:09]} Nf3+ {[%clk 00:03:47]} {[%emt 00:00:09]} 31. Kg2
{[%clk 00:00:32]} Nd2 {[%clk 00:03:47]} {[%emt 00:00:05]} 32. Rh6+ {[%clk
00:00:25]} {[%emt 00:00:10]} Kg7 {[%clk 00:03:36]} {[%emt 00:00:13]} 33. Rh7+
{[%clk 00:00:14]} {[%emt 00:00:18]} Kg8 {[%clk 00:03:38]} 34. Rh5 {[%clk
00:00:07]} {[%emt 00:00:12]} Nxf1 {[%clk 00:03:39]} 35. Rg5+ {[%clk 00:00:09]}
Kf8 {[%clk 00:03:40]} 36. h5 {[%clk 00:00:04]} {[%emt 00:00:12]} Nd2 {[%clk
00:03:36]} {[%emt 00:00:05]} 37. Bd3 {[%clk 00:00:05]} {[%emt 00:00:04]} Rd4
{[%clk 00:03:30]} {[%emt 00:00:06]} 38. Be2 {[%clk 00:00:06]} {[%emt 00:00:06]}
Ne4 {[%clk 00:03:30]} 39. Rg4 {[%clk 00:00:07]} {[%emt 00:00:05]} Rc2 {[%clk
00:03:21]} {[%emt 00:00:12]} 0-1

[Event "II Open Internacional Ateneo Marítimo (60 Aniversario)"]
[Site "C/La reina 68 (Valencia), Spain"]
[Date "2018.09.15"]
[Round "2.4"]
[White "Granero Roca, Antonio"]
[Black "Chernikov, Vladimir"]
[Result "1-0"]
[TimeControl "7m+3s por jugada"]
[WhiteFideId "2210509"]
[BlackFideId "14112914"]
[WhiteElo "2370"]
[BlackElo "2158"]

1. Nf3 {[%clk 00:07:04]} Nf6 {[%clk 00:07:06]} 2. g3 {[%clk 00:07:05]} b6
{[%clk 00:07:06]} {[%emt 00:00:16]} 3. Bg2 {[%clk 00:07:06]} {[%emt 00:00:04]}
Bb7 {[%clk 00:07:08]} 4. c4 {[%clk 00:07:07]} e6 {[%clk 00:07:06]} 5. O-O
{[%clk 00:07:08]} g6 {[%clk 00:07:03]} {[%emt 00:00:03]} 6. d4 {[%clk
00:07:09]} d6 {[%clk 00:07:05]} 7. Nc3 {[%clk 00:07:11]} {[%emt 00:00:07]} Bg7
{[%clk 00:07:07]} 8. Qc2 {[%clk 00:07:09]} Nbd7 {[%clk 00:06:58]} {[%emt
00:00:27]} 9. e4 {[%clk 00:07:11]} {[%emt 00:00:06]} e5 {[%clk 00:06:50]} 10.
d5 {[%clk 00:07:09]} O-O {[%clk 00:06:43]} {[%emt 00:00:06]} 11. h3 {[%clk
00:07:05]} {[%emt 00:00:08]} a5 {[%clk 00:06:29]} {[%emt 00:00:15]} 12. Be3
{[%clk 00:07:05]} {[%emt 00:00:21]} Ba6 {[%clk 00:06:24]} 13. b3 {[%clk
00:07:01]} Nh5 {[%clk 00:06:02]} {[%emt 00:00:22]} 14. Rad1 {[%clk 00:06:38]}
{[%emt 00:00:55]} h6 {[%clk 00:05:52]} 15. Bc1 {[%clk 00:06:04]} {[%emt
00:00:19]} f5 {[%clk 00:05:31]} {[%emt 00:00:25]} 16. Nh4 {[%clk 00:06:03]}
{[%emt 00:00:08]} f4 {[%clk 00:04:17]} {[%emt 00:01:14]} 17. Nxg6 {[%clk
00:05:51]} {[%emt 00:00:40]} Rf6 {[%clk 00:04:19]} 18. Qe2 {[%clk 00:05:34]}
{[%emt 00:00:09]} Nxg3 {[%clk 00:03:50]} {[%emt 00:00:18]} 19. fxg3 {[%clk
00:05:35]} {[%emt 00:00:28]} Rxg6 {[%clk 00:03:51]} 20. g4 {[%clk 00:05:30]}
Bf6 {[%clk 00:03:10]} {[%emt 00:01:01]} 21. Bd2 {[%clk 00:05:29]} Kh7 {[%clk
00:03:06]} 22. Kh1 {[%clk 00:05:13]} Qe7 {[%clk 00:03:01]} {[%emt 00:00:07]} 23.
Bf3 {[%clk 00:05:15]} {[%emt 00:00:07]} Rag8 {[%clk 00:02:49]} {[%emt
00:00:10]} 24. Rg1 {[%clk 00:05:09]} {[%emt 00:00:05]} Bh4 {[%clk 00:02:51]}
{[%emt 00:00:36]} 25. Be1 {[%clk 00:05:10]} h5 {[%clk 00:02:47]} 26. Bf2 {[%clk
00:05:01]} {[%emt 00:00:03]} Bxf2 {[%clk 00:02:23]} {[%emt 00:00:24]} 27. Qxf2
{[%clk 00:05:02]} hxg4 {[%clk 00:01:42]} {[%emt 00:00:32]} 28. Bxg4 {[%clk
00:04:59]} {[%emt 00:00:09]} Kh8 {[%clk 00:01:32]} {[%emt 00:00:45]} 29. Bf5
{[%clk 00:04:57]} Rg3 {[%clk 00:01:30]} 30. Ne2 {[%clk 00:04:46]} {[%emt
00:00:08]} Rxg1+ {[%clk 00:00:37]} {[%emt 00:00:47]} 31. Rxg1 {[%clk 00:04:48]}
Rxg1+ {[%clk 00:00:37]} 32. Qxg1 {[%clk 00:04:49]} Nf6 {[%clk 00:00:17]} {[%emt
00:00:21]} 33. Qg5 {[%clk 00:04:29]} {[%emt 00:00:20]} Qg7 {[%clk 00:00:12]}
{[%emt 00:00:36]} 34. Qh4+ Kg8 35. Ng1 {[%clk 00:04:26]} b5 {[%clk 00:00:16]}
36. cxb5 Bxb5 {[%clk 00:00:18]} 37. Nf3 {[%clk 00:04:01]} Bd3 {[%clk 00:00:21]}
38. Ng5 {[%clk 00:04:02]} f3 {[%clk 00:00:09]} 39. Nxf3 {[%clk 00:03:55]} Kf8
{[%clk 00:00:11]} 40. Ng5 {[%clk 00:03:56]} Ke7 {[%clk 00:00:13]} 41. Nh7
{[%clk 00:03:47]} Kf7 {[%clk 00:00:05]} {[%emt 00:00:10]} 42. Nxf6 {[%clk
00:03:31]} {[%emt 00:00:11]} Qxf6 {[%clk 00:00:07]} {[%emt 00:00:30]} 43. Qg3
{[%clk 00:03:12]} Bb1 {[%clk 00:00:05]} 44. a3 {[%clk 00:03:12]} {[%emt
00:00:03]} Bc2 {[%clk 00:00:06]} {[%emt 00:00:15]} 45. Qc3 {[%clk 00:03:07]}
Bxe4+ {[%clk 00:00:04]} 46. Qxc7+ {[%clk 00:02:56]} {[%emt 00:00:15]} Kf8+
{[%clk 00:00:06]} {[%emt 00:00:03]} 47. Qc8+ {[%clk 00:02:43]} {[%emt
00:00:27]} Kg7+ {[%clk 00:00:06]} 48. Qd7+ {[%clk 00:02:35]} {[%emt 00:00:09]}
Kf8+ {[%clk 00:00:07]} {[%emt 00:01:59]} 49. Bxe4 {[%clk 00:01:51]} {[%emt
00:00:17]} Qf1+ {[%clk 00:00:09]} 50. Kh2 {[%clk 00:01:52]} Qf2+ {[%clk
00:00:12]} 51. Bg2 {[%emt 00:00:07]} Qf4+ 52. Kg1 {[%clk 00:01:55]} Qe3+ {[%clk
00:00:17]} 53. Kf1 {[%clk 00:01:55]} Qd3+ {[%clk 00:00:13]} {[%emt 00:00:14]}
54. Kf2 {[%clk 00:01:42]} {[%emt 00:00:18]} Qd4+ {[%clk 00:00:10]} 55. Ke2
{[%clk 00:01:39]} {[%emt 00:00:08]} Qb2+ {[%clk 00:00:12]} 56. Kf3 {[%clk
00:01:38]} {[%emt 00:00:03]} Qxb3+ {[%clk 00:00:11]} 57. Kg4 {[%clk 00:01:39]}
{[%emt 00:00:04]} Qd1+ {[%clk 00:00:13]} 58. Bf3 {[%clk 00:01:23]} {[%emt
00:00:47]} Qd4+ {[%clk 00:00:09]} 59. Kh5 {[%clk 00:01:19]} Qf4 {[%clk
00:00:07]} 60. Qxd6+ {[%clk 00:01:14]} Kg7 {[%clk 00:00:08]} 61. Qe7+ {[%clk
00:01:09]} {[%emt 00:00:16]} Kh8 {[%clk 00:00:09]} 62. Qe8+ {[%clk 00:01:00]}
{[%emt 00:00:17]} Kg7 {[%clk 00:00:11]} 63. Qg6+ {[%clk 00:00:55]} Kf8 {[%clk
00:00:14]} 64. Qh6+ {[%clk 00:00:57]} 1-0